{"text_format":"3","workbook":"xlsx","n_sheets":3,"sheets":["Budget mensile","Spese mensili","Dati aggiuntivi"],"not_rendered":{"charts":1,"defined_names":4,"pivot_tables":2},"read":"whole","date_system":"1900"}

{"sheet":"Budget mensile","index":0,"n_rows":34,"n_cols":13,"rows_kept":34,"merged":[[7,1,10,1],[7,5,10,5],[7,6,10,6],[12,1,16,1],[12,5,16,5],[12,6,16,6]]}
[null,"Panoramica del budget",{"$nulls":7},"Riepilogo budget"]
[null,"Saldo"]
[null,"Saldo previsto","(Previsto meno spese)",{"$nulls":3},{"$f":"D17-SUM(DettagliBudget[Costo previsto])","v":{"v":1585,"d":"€ 1,585"}}]
[null,"Saldo effettivo ","(effettivo meno spese)",{"$nulls":3},{"$f":"D11-SUM(DettagliBudget[Costo effettivo])","v":{"v":1740,"d":"€ 1,740"}}]
[null,"Differenza","(effettivo meno previsto)",{"$nulls":3},{"$f":"G4-G3","v":{"v":155,"d":"€ 155"}}]
[]
[null,"Entrate",{"$nulls":3},"Spese",{"$nulls":3},"Fare clic con il pulsante destro del mouse sulla tabella pivot sotto e quindi scegliere Aggiorna per aggiornare"]
[null,"EFFETTIVE","Entrate 1",{"v":5800,"d":"€ 5,800"},null,"EFFETTIVE",{"$f":"SUM(DettagliBudget[Costo effettivo])","v":{"v":7860,"d":"€ 7,860"}}]
[null,null,"Entrate 2",{"v":2300,"d":"€ 2,300"},{"$nulls":5},"Categoria","Costo previsto","Costo effettivo","Differenza"]
[null,null,"Entrate extra",{"v":1500,"d":"€ 1,500"},{"$nulls":5},"Alloggio",{"v":2830,"d":"€ 2,830"},{"v":2702,"d":"€ 2,702"},{"v":128,"d":"€ 128"}]
[null,null,"Totale entrate",{"$f":"SUM(D8:D10)","v":{"v":9600,"d":"€ 9,600"}}]
[{"$nulls":9},"Animali domestici",{"v":170,"d":"€ 170"},{"v":100,"d":"€ 100"},{"v":70,"d":"€ 70"}]
[null,"PREVISTE",{"$nulls":3},"PREVISTE",{"$f":"SUM(DettagliBudget[Costo previsto])","v":{"v":7915,"d":"€ 7,915"}}]
[null,null,"Entrate 1",{"v":6000,"d":"€ 6,000"},{"$nulls":5},"Assicurazione",{"v":900,"d":"€ 900"},{"v":900,"d":"€ 900"},{"v":0,"d":"€ 0"}]
[null,null,"Entrate 2",{"v":1000,"d":"€ 1,000"}]
[null,null,"Entrate extra",{"v":2500,"d":"€ 2,500"},{"$nulls":5},"Cibo",{"v":1100,"d":"€ 1,100"},{"v":1320,"d":"€ 1,320"},{"v":-220,"d":"-€ 220"}]
[null,null,"Totale entrate",{"$f":"SUM(D14:D16)","v":{"v":9500,"d":"€ 9,500"}}]
[{"$nulls":9},"Cura personale",{"v":150,"d":"€ 150"},{"v":140,"d":"€ 140"},{"v":10,"d":"€ 10"}]
[]
[{"$nulls":9},"Divertimenti",{"v":400,"d":"€ 400"},{"v":358,"d":"€ 358"},{"v":42,"d":"€ 42"}]
[]
[{"$nulls":9},"Donazioni e beneficenza",{"v":100,"d":"€ 100"},{"v":125,"d":"€ 125"},{"v":-25,"d":"-€ 25"}]
[]
[{"$nulls":9},"Figli",{"v":140,"d":"€ 140"},{"v":140,"d":"€ 140"},{"v":0,"d":"€ 0"}]
[]
[{"$nulls":9},"Prestiti",{"v":200,"d":"€ 200"},{"v":200,"d":"€ 200"},{"v":0,"d":"€ 0"}]
[]
[{"$nulls":9},"Risparmi e investimenti",{"v":200,"d":"€ 200"},{"v":200,"d":"€ 200"},{"v":0,"d":"€ 0"}]
[]
[{"$nulls":9},"Tasse",{"v":300,"d":"€ 300"},{"v":300,"d":"€ 300"},{"v":0,"d":"€ 0"}]
[]
[{"$nulls":9},"Trasporti",{"v":1425,"d":"€ 1,425"},{"v":1375,"d":"€ 1,375"},{"v":50,"d":"€ 50"}]
[]
[{"$nulls":9},"Grand Total",{"v":7915,"d":"€ 7,915"},{"v":7860,"d":"€ 7,860"},{"v":55,"d":"€ 55"}]

{"sheet":"Spese mensili","index":1,"n_rows":62,"n_cols":7,"rows_kept":62}
[null,"Spese mensili"]
[null,"Descrizione","Categoria","Costo previsto","Costo effettivo","Differenza","Panoramica costo effettivo"]
[null,"Attività extracurricolari","Figli",{"v":40,"d":"40kr"},{"v":40,"d":"40kr"},{"$f":"DettagliBudget[[#This Row],[Costo previsto]]-DettagliBudget[[#This Row],[Costo effettivo]]","v":{"v":0,"d":"0kr"}},{"$f":"DettagliBudget[[#This Row],[Costo effettivo]]","v":{"v":40,"d":"$40"}}]
[null,"Spese mediche","Figli",null,null,{"$f":"DettagliBudget[[#This Row],[Costo previsto]]-DettagliBudget[[#This Row],[Costo effettivo]]","v":{"v":0,"d":"0kr"}},{"$f":"DettagliBudget[[#This Row],[Costo effettivo]]","v":{"v":0,"d":"$0"}}]
[null,"Cancelleria","Figli",null,null,{"$f":"DettagliBudget[[#This Row],[Costo previsto]]-DettagliBudget[[#This Row],[Costo effettivo]]","v":{"v":0,"d":"0kr"}},{"$f":"DettagliBudget[[#This Row],[Costo effettivo]]","v":{"v":0,"d":"$0"}}]
[null,"Spese scolastiche","Figli",{"v":100,"d":"100kr"},{"v":100,"d":"100kr"},{"$f":"DettagliBudget[[#This Row],[Costo previsto]]-DettagliBudget[[#This Row],[Costo effettivo]]","v":{"v":0,"d":"0kr"}},{"$f":"DettagliBudget[[#This Row],[Costo effettivo]]","v":{"v":100,"d":"$100"}}]
[null,"Concerti","Divertimenti",{"v":50,"d":"50kr"},{"v":40,"d":"40kr"},{"$f":"DettagliBudget[[#This Row],[Costo previsto]]-DettagliBudget[[#This Row],[Costo effettivo]]","v":{"v":10,"d":"10kr"}},{"$f":"DettagliBudget[[#This Row],[Costo effettivo]]","v":{"v":40,"d":"$40"}}]
[null,"Teatro","Divertimenti",{"v":200,"d":"200kr"},{"v":150,"d":"150kr"},{"$f":"DettagliBudget[[#This Row],[Costo previsto]]-DettagliBudget[[#This Row],[Costo effettivo]]","v":{"v":50,"d":"50kr"}},{"$f":"DettagliBudget[[#This Row],[Costo effettivo]]","v":{"v":150,"d":"$150"}}]
[null,"Cinema","Divertimenti",{"v":50,"d":"50kr"},{"v":28,"d":"28kr"},{"$f":"DettagliBudget[[#This Row],[Costo previsto]]-DettagliBudget[[#This Row],[Costo effettivo]]","v":{"v":22,"d":"22kr"}},{"$f":"DettagliBudget[[#This Row],[Costo effettivo]]","v":{"v":28,"d":"$28"}}]
[null,"Musica (CD, download, ecc.)","Divertimenti",{"v":50,"d":"50kr"},{"v":30,"d":"30kr"},{"$f":"DettagliBudget[[#This Row],[Costo previsto]]-DettagliBudget[[#This Row],[Costo effettivo]]","v":{"v":20,"d":"20kr"}},{"$f":"DettagliBudget[[#This Row],[Costo effettivo]]","v":{"v":30,"d":"$30"}}]
[null,"Eventi sportivi","Divertimenti",{"v":0,"d":"0kr"},{"v":40,"d":"40kr"},{"$f":"DettagliBudget[[#This Row],[Costo previsto]]-DettagliBudget[[#This Row],[Costo effettivo]]","v":{"v":-40,"d":"(40 kr)"}},{"$f":"DettagliBudget[[#This Row],[Costo effettivo]]","v":{"v":40,"d":"$40"}}]
[null,"Video/DVD (acquisto)","Divertimenti",{"v":20,"d":"20kr"},{"v":50,"d":"50kr"},{"$f":"DettagliBudget[[#This Row],[Costo previsto]]-DettagliBudget[[#This Row],[Costo effettivo]]","v":{"v":-30,"d":"(30 kr)"}},{"$f":"DettagliBudget[[#This Row],[Costo effettivo]]","v":{"v":50,"d":"$50"}}]
[null,"Video/DVD (noleggio)","Divertimenti",{"v":30,"d":"30kr"},{"v":20,"d":"20kr"},{"$f":"DettagliBudget[[#This Row],[Costo previsto]]-DettagliBudget[[#This Row],[Costo effettivo]]","v":{"v":10,"d":"10kr"}},{"$f":"DettagliBudget[[#This Row],[Costo effettivo]]","v":{"v":20,"d":"$20"}}]
[null,"Ristoranti","Cibo",{"v":1000,"d":"1,000kr"},{"v":1200,"d":"1,200kr"},{"$f":"DettagliBudget[[#This Row],[Costo previsto]]-DettagliBudget[[#This Row],[Costo effettivo]]","v":{"v":-200,"d":"(200 kr)"}},{"$f":"DettagliBudget[[#This Row],[Costo effettivo]]","v":{"v":1200,"d":"$1,200"}}]
[null,"Generi alimentari","Cibo",{"v":100,"d":"100kr"},{"v":120,"d":"120kr"},{"$f":"DettagliBudget[[#This Row],[Costo previsto]]-DettagliBudget[[#This Row],[Costo effettivo]]","v":{"v":-20,"d":"(20 kr)"}},{"$f":"DettagliBudget[[#This Row],[Costo effettivo]]","v":{"v":120,"d":"$120"}}]
[null,"Beneficenza 1","Donazioni e beneficenza",{"v":75,"d":"75kr"},{"v":100,"d":"100kr"},{"$f":"DettagliBudget[[#This Row],[Costo previsto]]-DettagliBudget[[#This Row],[Costo effettivo]]","v":{"v":-25,"d":"(25 kr)"}},{"$f":"DettagliBudget[[#This Row],[Costo effettivo]]","v":{"v":100,"d":"$100"}}]
[null,"Beneficenza 2","Donazioni e beneficenza",{"v":25,"d":"25kr"},{"v":25,"d":"25kr"},{"$f":"DettagliBudget[[#This Row],[Costo previsto]]-DettagliBudget[[#This Row],[Costo effettivo]]","v":{"v":0,"d":"0kr"}},{"$f":"DettagliBudget[[#This Row],[Costo effettivo]]","v":{"v":25,"d":"$25"}}]
[null,"Donazione 1","Donazioni e beneficenza",null,null,{"$f":"DettagliBudget[[#This Row],[Costo previsto]]-DettagliBudget[[#This Row],[Costo effettivo]]","v":{"v":0,"d":"0kr"}},{"$f":"DettagliBudget[[#This Row],[Costo effettivo]]","v":{"v":0,"d":"$0"}}]
[null,"Donazione 2","Donazioni e beneficenza",null,null,{"$f":"DettagliBudget[[#This Row],[Costo previsto]]-DettagliBudget[[#This Row],[Costo effettivo]]","v":{"v":0,"d":"0kr"}},{"$f":"DettagliBudget[[#This Row],[Costo effettivo]]","v":{"v":0,"d":"$0"}}]
[null,"TV via cavo/satellite","Alloggio",{"v":100,"d":"100kr"},{"v":100,"d":"100kr"},{"$f":"DettagliBudget[[#This Row],[Costo previsto]]-DettagliBudget[[#This Row],[Costo effettivo]]","v":{"v":0,"d":"0kr"}},{"$f":"DettagliBudget[[#This Row],[Costo effettivo]]","v":{"v":100,"d":"$100"}}]
[null,"Elettricità","Alloggio",{"v":45,"d":"45kr"},{"v":50,"d":"50kr"},{"$f":"DettagliBudget[[#This Row],[Costo previsto]]-DettagliBudget[[#This Row],[Costo effettivo]]","v":{"v":-5,"d":"(5 kr)"}},{"$f":"DettagliBudget[[#This Row],[Costo effettivo]]","v":{"v":50,"d":"$50"}}]
[null,"Gas","Alloggio",{"v":300,"d":"300kr"},{"v":400,"d":"400kr"},{"$f":"DettagliBudget[[#This Row],[Costo previsto]]-DettagliBudget[[#This Row],[Costo effettivo]]","v":{"v":-100,"d":"(100 kr)"}},{"$f":"DettagliBudget[[#This Row],[Costo effettivo]]","v":{"v":400,"d":"$400"}}]
[null,"Pulizia della casa","Alloggio",{"v":200,"d":"200kr"},null,{"$f":"DettagliBudget[[#This Row],[Costo previsto]]-DettagliBudget[[#This Row],[Costo effettivo]]","v":{"v":200,"d":"200kr"}},{"$f":"DettagliBudget[[#This Row],[Costo effettivo]]","v":{"v":0,"d":"$0"}}]
[null,"Manutenzione","Alloggio",{"v":200,"d":"200kr"},{"v":150,"d":"150kr"},{"$f":"DettagliBudget[[#This Row],[Costo previsto]]-DettagliBudget[[#This Row],[Costo effettivo]]","v":{"v":50,"d":"50kr"}},{"$f":"DettagliBudget[[#This Row],[Costo effettivo]]","v":{"v":150,"d":"$150"}}]
[null,"Mutuo o affitto","Alloggio",{"v":1700,"d":"1,700kr"},{"v":1700,"d":"1,700kr"},{"$f":"DettagliBudget[[#This Row],[Costo previsto]]-DettagliBudget[[#This Row],[Costo effettivo]]","v":{"v":0,"d":"0kr"}},{"$f":"DettagliBudget[[#This Row],[Costo effettivo]]","v":{"v":1700,"d":"$1,700"}}]
[null,"Benzina/Gas naturale","Alloggio",null,null,{"$f":"DettagliBudget[[#This Row],[Costo previsto]]-DettagliBudget[[#This Row],[Costo effettivo]]","v":{"v":0,"d":"0kr"}},{"$f":"DettagliBudget[[#This Row],[Costo effettivo]]","v":{"v":0,"d":"$0"}}]
[null,"Online/Servizio Internet","Alloggio",{"v":100,"d":"100kr"},{"v":100,"d":"100kr"},{"$f":"DettagliBudget[[#This Row],[Costo previsto]]-DettagliBudget[[#This Row],[Costo effettivo]]","v":{"v":0,"d":"0kr"}},{"$f":"DettagliBudget[[#This Row],[Costo effettivo]]","v":{"v":100,"d":"$100"}}]
[null,"Telefono (cellulare)","Alloggio",{"v":60,"d":"60kr"},{"v":60,"d":"60kr"},{"$f":"DettagliBudget[[#This Row],[Costo previsto]]-DettagliBudget[[#This Row],[Costo effettivo]]","v":{"v":0,"d":"0kr"}},{"$f":"DettagliBudget[[#This Row],[Costo effettivo]]","v":{"v":60,"d":"$60"}}]
[null,"Telefono (abitazione)","Alloggio",{"v":35,"d":"35kr"},{"v":39,"d":"39kr"},{"$f":"DettagliBudget[[#This Row],[Costo previsto]]-DettagliBudget[[#This Row],[Costo effettivo]]","v":{"v":-4,"d":"(4 kr)"}},{"$f":"DettagliBudget[[#This Row],[Costo effettivo]]","v":{"v":39,"d":"$39"}}]
[null,"Provviste","Alloggio",{"v":40,"d":"40kr"},{"v":55,"d":"55kr"},{"$f":"DettagliBudget[[#This Row],[Costo previsto]]-DettagliBudget[[#This Row],[Costo effettivo]]","v":{"v":-15,"d":"(15 kr)"}},{"$f":"DettagliBudget[[#This Row],[Costo effettivo]]","v":{"v":55,"d":"$55"}}]
[null,"Raccolta/riciclo dei rifiuti","Alloggio",{"v":25,"d":"25kr"},{"v":22,"d":"22kr"},{"$f":"DettagliBudget[[#This Row],[Costo previsto]]-DettagliBudget[[#This Row],[Costo effettivo]]","v":{"v":3,"d":"3kr"}},{"$f":"DettagliBudget[[#This Row],[Costo effettivo]]","v":{"v":22,"d":"$22"}}]
[null,"Acqua e fognature","Alloggio",{"v":25,"d":"25kr"},{"v":26,"d":"26kr"},{"$f":"DettagliBudget[[#This Row],[Costo previsto]]-DettagliBudget[[#This Row],[Costo effettivo]]","v":{"v":-1,"d":"(1 kr)"}},{"$f":"DettagliBudget[[#This Row],[Costo effettivo]]","v":{"v":26,"d":"$26"}}]
[null,"Sanitaria","Assicurazione",{"v":400,"d":"400kr"},{"v":400,"d":"400kr"},{"$f":"DettagliBudget[[#This Row],[Costo previsto]]-DettagliBudget[[#This Row],[Costo effettivo]]","v":{"v":0,"d":"0kr"}},{"$f":"DettagliBudget[[#This Row],[Costo effettivo]]","v":{"v":400,"d":"$400"}}]
[null,"Casa","Assicurazione",{"v":400,"d":"400kr"},{"v":400,"d":"400kr"},{"$f":"DettagliBudget[[#This Row],[Costo previsto]]-DettagliBudget[[#This Row],[Costo effettivo]]","v":{"v":0,"d":"0kr"}},{"$f":"DettagliBudget[[#This Row],[Costo effettivo]]","v":{"v":400,"d":"$400"}}]
[null,"Vita","Assicurazione",{"v":100,"d":"100kr"},{"v":100,"d":"100kr"},{"$f":"DettagliBudget[[#This Row],[Costo previsto]]-DettagliBudget[[#This Row],[Costo effettivo]]","v":{"v":0,"d":"0kr"}},{"$f":"DettagliBudget[[#This Row],[Costo effettivo]]","v":{"v":100,"d":"$100"}}]
[null,"Carta di credito 1","Prestiti",{"v":200,"d":"200kr"},{"v":200,"d":"200kr"},{"$f":"DettagliBudget[[#This Row],[Costo previsto]]-DettagliBudget[[#This Row],[Costo effettivo]]","v":{"v":0,"d":"0kr"}},{"$f":"DettagliBudget[[#This Row],[Costo effettivo]]","v":{"v":200,"d":"$200"}}]
[null,"Carta di credito 2","Prestiti",null,null,{"$f":"DettagliBudget[[#This Row],[Costo previsto]]-DettagliBudget[[#This Row],[Costo effettivo]]","v":{"v":0,"d":"€ 0"}},{"$f":"DettagliBudget[[#This Row],[Costo effettivo]]","v":{"v":0,"d":"$0"}}]
[null,"Carta di credito 3","Prestiti",null,null,{"$f":"DettagliBudget[[#This Row],[Costo previsto]]-DettagliBudget[[#This Row],[Costo effettivo]]","v":{"v":0,"d":"€ 0"}},{"$f":"DettagliBudget[[#This Row],[Costo effettivo]]","v":{"v":0,"d":"$0"}}]
[null,"Personali","Prestiti",null,null,{"$f":"DettagliBudget[[#This Row],[Costo previsto]]-DettagliBudget[[#This Row],[Costo effettivo]]","v":{"v":0,"d":"€ 0"}},{"$f":"DettagliBudget[[#This Row],[Costo effettivo]]","v":{"v":0,"d":"$0"}}]
[null,"Studente","Prestiti",null,null,{"$f":"DettagliBudget[[#This Row],[Costo previsto]]-DettagliBudget[[#This Row],[Costo effettivo]]","v":{"v":0,"d":"€ 0"}},{"$f":"DettagliBudget[[#This Row],[Costo effettivo]]","v":{"v":0,"d":"$0"}}]
[null,"Vestiario","Cura personale",{"v":150,"d":"€ 150"},{"v":140,"d":"€ 140"},{"$f":"DettagliBudget[[#This Row],[Costo previsto]]-DettagliBudget[[#This Row],[Costo effettivo]]","v":{"v":10,"d":"€ 10"}},{"$f":"DettagliBudget[[#This Row],[Costo effettivo]]","v":{"v":140,"d":"$140"}}]
[null,"Lavanderia","Cura personale",null,null,{"$f":"DettagliBudget[[#This Row],[Costo previsto]]-DettagliBudget[[#This Row],[Costo effettivo]]","v":{"v":0,"d":"€ 0"}},{"$f":"DettagliBudget[[#This Row],[Costo effettivo]]","v":{"v":0,"d":"$0"}}]
[null,"Capelli e unghie","Cura personale",null,null,{"$f":"DettagliBudget[[#This Row],[Costo previsto]]-DettagliBudget[[#This Row],[Costo effettivo]]","v":{"v":0,"d":"€ 0"}},{"$f":"DettagliBudget[[#This Row],[Costo effettivo]]","v":{"v":0,"d":"$0"}}]
[null,"Palestra","Cura personale",null,null,{"$f":"DettagliBudget[[#This Row],[Costo previsto]]-DettagliBudget[[#This Row],[Costo effettivo]]","v":{"v":0,"d":"€ 0"}},{"$f":"DettagliBudget[[#This Row],[Costo effettivo]]","v":{"v":0,"d":"$0"}}]
[null,"Spese mediche","Cura personale",null,null,{"$f":"DettagliBudget[[#This Row],[Costo previsto]]-DettagliBudget[[#This Row],[Costo effettivo]]","v":{"v":0,"d":"€ 0"}},{"$f":"DettagliBudget[[#This Row],[Costo effettivo]]","v":{"v":0,"d":"$0"}}]
[null,"Cibo","Animali domestici",{"v":150,"d":"€ 150"},{"v":75,"d":"€ 75"},{"$f":"DettagliBudget[[#This Row],[Costo previsto]]-DettagliBudget[[#This Row],[Costo effettivo]]","v":{"v":75,"d":"€ 75"}},{"$f":"DettagliBudget[[#This Row],[Costo effettivo]]","v":{"v":75,"d":"$75"}}]
[null,"Toelettatura","Animali domestici",{"v":20,"d":"€ 20"},{"v":25,"d":"€ 25"},{"$f":"DettagliBudget[[#This Row],[Costo previsto]]-DettagliBudget[[#This Row],[Costo effettivo]]","v":{"v":-5,"d":"(€ 5)"}},{"$f":"DettagliBudget[[#This Row],[Costo effettivo]]","v":{"v":25,"d":"$25"}}]
[null,"Spese mediche","Animali domestici",null,null,{"$f":"DettagliBudget[[#This Row],[Costo previsto]]-DettagliBudget[[#This Row],[Costo effettivo]]","v":{"v":0,"d":"€ 0"}},{"$f":"DettagliBudget[[#This Row],[Costo effettivo]]","v":{"v":0,"d":"$0"}}]
[null,"Giocattoli","Animali domestici",null,null,{"$f":"DettagliBudget[[#This Row],[Costo previsto]]-DettagliBudget[[#This Row],[Costo effettivo]]","v":{"v":0,"d":"€ 0"}},{"$f":"DettagliBudget[[#This Row],[Costo effettivo]]","v":{"v":0,"d":"$0"}}]
[null,"Conto investimento","Risparmi e investimenti",{"v":200,"d":"€ 200"},{"v":200,"d":"€ 200"},{"$f":"DettagliBudget[[#This Row],[Costo previsto]]-DettagliBudget[[#This Row],[Costo effettivo]]","v":{"v":0,"d":"€ 0"}},{"$f":"DettagliBudget[[#This Row],[Costo effettivo]]","v":{"v":200,"d":"$200"}}]
[null,"Conto pensione","Risparmi e investimenti",null,null,{"$f":"DettagliBudget[[#This Row],[Costo previsto]]-DettagliBudget[[#This Row],[Costo effettivo]]","v":{"v":0,"d":"€ 0"}},{"$f":"DettagliBudget[[#This Row],[Costo effettivo]]","v":{"v":0,"d":"$0"}}]
[null,"Federali","Tasse",{"v":300,"d":"€ 300"},{"v":300,"d":"€ 300"},{"$f":"DettagliBudget[[#This Row],[Costo previsto]]-DettagliBudget[[#This Row],[Costo effettivo]]","v":{"v":0,"d":"€ 0"}},{"$f":"DettagliBudget[[#This Row],[Costo effettivo]]","v":{"v":300,"d":"$300"}}]
[null,"Locali","Tasse",null,null,{"$f":"DettagliBudget[[#This Row],[Costo previsto]]-DettagliBudget[[#This Row],[Costo effettivo]]","v":{"v":0,"d":"€ 0"}},{"$f":"DettagliBudget[[#This Row],[Costo effettivo]]","v":{"v":0,"d":"$0"}}]
[null,"Statali","Tasse",null,null,{"$f":"DettagliBudget[[#This Row],[Costo previsto]]-DettagliBudget[[#This Row],[Costo effettivo]]","v":{"v":0,"d":"€ 0"}},{"$f":"DettagliBudget[[#This Row],[Costo effettivo]]","v":{"v":0,"d":"$0"}}]
[null,"Bus/Taxi","Trasporti",{"v":100,"d":"€ 100"},{"v":150,"d":"€ 150"},{"$f":"DettagliBudget[[#This Row],[Costo previsto]]-DettagliBudget[[#This Row],[Costo effettivo]]","v":{"v":-50,"d":"(€ 50)"}},{"$f":"DettagliBudget[[#This Row],[Costo effettivo]]","v":{"v":150,"d":"$150"}}]
[null,"Carburante","Trasporti",{"v":450,"d":"€ 450"},{"v":400,"d":"€ 400"},{"$f":"DettagliBudget[[#This Row],[Costo previsto]]-DettagliBudget[[#This Row],[Costo effettivo]]","v":{"v":50,"d":"€ 50"}},{"$f":"DettagliBudget[[#This Row],[Costo effettivo]]","v":{"v":400,"d":"$400"}}]
[null,"Assicurazione","Trasporti",{"v":300,"d":"€ 300"},{"v":300,"d":"€ 300"},{"$f":"DettagliBudget[[#This Row],[Costo previsto]]-DettagliBudget[[#This Row],[Costo effettivo]]","v":{"v":0,"d":"€ 0"}},{"$f":"DettagliBudget[[#This Row],[Costo effettivo]]","v":{"v":300,"d":"$300"}}]
[null,"Patente ","Trasporti",{"v":25,"d":"€ 25"},{"v":25,"d":"€ 25"},{"$f":"DettagliBudget[[#This Row],[Costo previsto]]-DettagliBudget[[#This Row],[Costo effettivo]]","v":{"v":0,"d":"€ 0"}},{"$f":"DettagliBudget[[#This Row],[Costo effettivo]]","v":{"v":25,"d":"$25"}}]
[null,"Manutenzione","Trasporti",{"v":100,"d":"€ 100"},{"v":50,"d":"€ 50"},{"$f":"DettagliBudget[[#This Row],[Costo previsto]]-DettagliBudget[[#This Row],[Costo effettivo]]","v":{"v":50,"d":"€ 50"}},{"$f":"DettagliBudget[[#This Row],[Costo effettivo]]","v":{"v":50,"d":"$50"}}]
[null,"Parcheggio","Trasporti",null,null,{"$f":"DettagliBudget[[#This Row],[Costo previsto]]-DettagliBudget[[#This Row],[Costo effettivo]]","v":{"v":0,"d":"€ 0"}},{"$f":"DettagliBudget[[#This Row],[Costo effettivo]]","v":{"v":0,"d":"$0"}}]
[null,"Pagamenti veicolo","Trasporti",{"v":450,"d":"€ 450"},{"v":450,"d":"€ 450"},{"$f":"DettagliBudget[[#This Row],[Costo previsto]]-DettagliBudget[[#This Row],[Costo effettivo]]","v":{"v":0,"d":"€ 0"}},{"$f":"DettagliBudget[[#This Row],[Costo effettivo]]","v":{"v":450,"d":"$450"}}]
[null,"Totale",null,{"$f":"SUBTOTAL(109,DettagliBudget[Costo previsto])","v":{"v":7915,"d":"€ 7,915"}},{"$f":"SUBTOTAL(109,DettagliBudget[Costo effettivo])","v":{"v":7860,"d":"€ 7,860"}},{"$f":"SUBTOTAL(109,DettagliBudget[Differenza])","v":{"v":55,"d":"€ 55"}},{"$f":"SUBTOTAL(109,DettagliBudget[Panoramica costo effettivo])","v":{"v":7860,"d":"€ 7,860"}}]

{"sheet":"Dati aggiuntivi","index":2,"n_rows":15,"n_cols":5,"rows_kept":15}
[null,"Tabella pivot per grafico Panoramica del budget",null,null,"Elenco di ricerca per categoria dettagli budget"]
[null,"Categoria","Costo",null,"Ricerca in categoria Budget"]
[null,"Alloggio",2702,null,"Figli"]
[null,"Animali domestici",100,null,"Divertimenti"]
[null,"Assicurazione",900,null,"Cibo"]
[null,"Cibo",1320,null,"Donazioni e beneficenza"]
[null,"Cura personale",140,null,"Alloggio"]
[null,"Divertimenti",358,null,"Assicurazione"]
[null,"Donazioni e beneficenza",125,null,"Prestiti"]
[null,"Figli",140,null,"Cura personale"]
[null,"Prestiti",200,null,"Animali domestici"]
[null,"Risparmi e investimenti",200,null,"Risparmi e investimenti"]
[null,"Tasse",300,null,"Tasse"]
[null,"Trasporti",1375,null,"Trasporti"]
[null,"Grand Total",7860]